[Event "SELL Games"]
[Site "Tartu, Estonia"]
[Date "2023.05.19"]
[Round "1.7"]
[White "Piksis, Davids"]
[Black "Sirp, Karl Aleksander"]
[Result "0-1"]
[TimeControl "15min + 10sec per move each"]
[WhiteFideId "11609117"]
[BlackFideId "4504712"]
[WhiteElo "1770"]
[BlackElo "2033"]

1. e4 {[%clk 00:15:18]} {[%emt 00:00:02]} d5 {[%clk 00:15:16]} {[%emt
00:00:04]} 2. exd5 {[%clk 00:15:26]} {[%emt 00:00:02]} Qxd5 {[%clk 00:15:23]}
{[%emt 00:00:03]} 3. Nc3 {[%clk 00:15:35]} {[%emt 00:00:01]} Qa5 {[%clk
00:15:31]} {[%emt 00:00:01]} 4. d4 {[%clk 00:15:40]} {[%emt 00:00:06]} c6
{[%clk 00:15:39]} {[%emt 00:00:01]} 5. Bc4 {[%clk 00:15:43]} {[%emt 00:00:07]}
Nf6 {[%clk 00:15:47]} {[%emt 00:00:02]} 6. Qe2 {[%clk 00:15:42]} {[%emt
00:00:12]} Bf5 {[%clk 00:15:39]} {[%emt 00:00:18]} 7. Nf3 {[%clk 00:15:03]}
{[%emt 00:00:49]} e6 {[%clk 00:15:46]} {[%emt 00:00:03]} 8. O-O {[%clk
00:14:37]} {[%emt 00:00:36]} Bd6 {[%clk 00:15:52]} {[%emt 00:00:04]} 9. Bd2
{[%clk 00:13:14]} {[%emt 00:01:34]} Qc7 {[%clk 00:15:58]} {[%emt 00:00:03]} 10.
d5 {[%clk 00:11:06]} {[%emt 00:02:17]} Nxd5 {[%clk 00:15:26]} {[%emt 00:00:42]}
11. Nxd5 {[%clk 00:10:42]} {[%emt 00:00:35]} cxd5 {[%clk 00:15:35]} {[%emt
00:00:01]} 12. Bxd5 {[%clk 00:10:42]} {[%emt 00:00:10]} O-O {[%clk 00:15:09]}
{[%emt 00:00:36]} 13. Be4 {[%clk 00:10:18]} {[%emt 00:00:34]} Bxe4 {[%clk
00:14:55]} {[%emt 00:00:23]} 14. Qxe4 {[%clk 00:10:26]} {[%emt 00:00:02]} Nc6
{[%clk 00:15:01]} {[%emt 00:00:04]} 15. Ng5 {[%clk 00:09:33]} {[%emt 00:01:04]}
g6 {[%clk 00:14:33]} {[%emt 00:00:38]} 16. Qh4 {[%clk 00:09:15]} {[%emt
00:00:28]} h5 {[%clk 00:14:40]} {[%emt 00:00:03]} 17. g4 {[%clk 00:07:57]}
{[%emt 00:01:29]} Bf4 {[%clk 00:14:13]} {[%emt 00:00:37]} 18. Bc3 {[%clk
00:06:26]} {[%emt 00:01:41]} Qe7 {[%clk 00:14:12]} {[%emt 00:00:11]} 19. Nf3
{[%clk 00:05:10]} {[%emt 00:01:27]} Qxh4 {[%clk 00:14:19]} {[%emt 00:00:02]} 20.
Nxh4 {[%clk 00:05:18]} {[%emt 00:00:01]} hxg4 {[%clk 00:14:14]} {[%emt
00:00:15]} 21. f3 {[%clk 00:04:57]} {[%emt 00:00:32]} g3 {[%clk 00:13:51]}
{[%emt 00:00:33]} 22. hxg3 {[%clk 00:04:54]} {[%emt 00:00:14]} Bxg3 {[%clk
00:13:59]} {[%emt 00:00:01]} 23. Bf6 {[%clk 00:04:14]} {[%emt 00:00:50]} Be5
{[%clk 00:13:50]} {[%emt 00:00:19]} 24. Bxe5 {[%clk 00:04:11]} {[%emt
00:00:13]} Nxe5 {[%clk 00:13:57]} {[%emt 00:00:02]} 25. f4 {[%clk 00:04:19]}
{[%emt 00:00:02]} Nc4 {[%clk 00:13:49]} {[%emt 00:00:19]} 26. b3 {[%clk
00:03:45]} {[%emt 00:00:44]} Ne3 {[%clk 00:13:58]} {[%emt 00:00:01]} 27. Rf2
{[%clk 00:03:48]} {[%emt 00:00:06]} Rfd8 {[%clk 00:13:45]} {[%emt 00:00:24]} 28.
Re1 {[%clk 00:03:31]} {[%emt 00:00:27]} Nf5 {[%clk 00:13:29]} {[%emt 00:00:27]}
29. Nxf5 {[%clk 00:03:34]} {[%emt 00:00:07]} gxf5 {[%clk 00:13:38]} {[%emt
00:00:01]} 30. Kg2 {[%clk 00:02:51]} {[%emt 00:00:52]} Kg7 {[%clk 00:13:44]}
{[%emt 00:00:04]} 31. Kf3 {[%clk 00:02:58]} {[%emt 00:00:03]} Kf6 {[%clk
00:13:50]} {[%emt 00:00:04]} 32. Rh1 {[%clk 00:02:40]} {[%emt 00:00:27]} Rac8
{[%clk 00:13:46]} {[%emt 00:00:15]} 33. Rh6+ {[%clk 00:02:34]} {[%emt
00:00:17]} Ke7 {[%clk 00:13:28]} {[%emt 00:00:27]} 34. Rhh2 {[%clk 00:02:37]}
{[%emt 00:00:07]} Rc3+ {[%clk 00:13:35]} {[%emt 00:00:04]} 35. Kg2 {[%clk
00:02:36]} {[%emt 00:00:10]} Rd1 {[%clk 00:13:13]} {[%emt 00:00:32]} 36. Rh1
{[%clk 00:02:28]} {[%emt 00:00:18]} Rd8 {[%clk 00:12:45]} {[%emt 00:00:38]} 37.
Re1 {[%clk 00:02:09]} {[%emt 00:00:28]} Kf6 {[%clk 00:12:48]} {[%emt 00:00:07]}
38. a4 {[%clk 00:01:58]} {[%emt 00:00:22]} Rg8+ {[%clk 00:12:48]} {[%emt
00:00:09]} 39. Kf1 {[%clk 00:02:03]} {[%emt 00:00:05]} Rd8 {[%clk 00:12:10]}
{[%emt 00:00:48]} 40. Ree2 {[%clk 00:01:43]} {[%emt 00:00:31]} Rg3 {[%clk
00:12:08]} {[%emt 00:00:11]} 41. Ke1 {[%clk 00:01:04]} {[%emt 00:00:49]} Rd4
{[%clk 00:12:10]} {[%emt 00:00:09]} 42. Rd2 {[%clk 00:00:59]} {[%emt 00:00:15]}
Rg1+ {[%clk 00:11:52]} {[%emt 00:00:27]} 43. Ke2 {[%clk 00:01:06]} {[%emt
00:00:03]} Re4+ {[%clk 00:11:57]} {[%emt 00:00:06]} 44. Kf3 {[%clk 00:00:54]}
{[%emt 00:00:21]} Rg4 {[%clk 00:11:52]} {[%emt 00:00:15]} 45. Rd7 {[%clk
00:00:54]} {[%emt 00:00:10]} Rgxf4+ {[%clk 00:11:53]} {[%emt 00:00:09]} 46. Kg2
{[%clk 00:01:00]} {[%emt 00:00:03]} Rxf2+ {[%clk 00:11:55]} {[%emt 00:00:10]}
47. Kxf2 {[%clk 00:01:09]} Rb4 {[%clk 00:12:04]} 48. Ke3 {[%clk 00:01:11]}
{[%emt 00:00:08]} a5 {[%clk 00:11:57]} {[%emt 00:00:17]} 49. Rc7 {[%clk
00:01:00]} {[%emt 00:00:21]} f4+ {[%clk 00:11:41]} {[%emt 00:00:26]} 50. Kf3
{[%clk 00:01:04]} {[%emt 00:00:06]} e5 {[%clk 00:11:43]} {[%emt 00:00:08]} 51.
Rc5 {[%clk 00:00:57]} {[%emt 00:00:17]} b6 {[%clk 00:11:41]} {[%emt 00:00:13]}
52. Kg4 {[%clk 00:00:38]} {[%emt 00:00:28]} bxc5 {[%clk 00:11:17]} {[%emt
00:00:34]} 0-1

[Event "SELL Games"]
[Site "Tartu, Estonia"]
[Date "2023.05.19"]
[Round "1.8"]
[White "Obolonin, Filipp"]
[Black "Maciuityte, Greta"]
[Result "1-0"]
[TimeControl "15min + 10sec per move each"]
[WhiteFideId "4505549"]
[BlackFideId "12806765"]
[WhiteElo "2017"]
[BlackElo "1715"]

1. d4 {[%clk 00:15:17]} {[%emt 00:06:03]} c5 {[%clk 00:15:18]} {[%emt
00:00:02]} 2. c3 {[%clk 00:15:16]} {[%emt 00:00:11]} cxd4 {[%clk 00:15:27]}
{[%emt 00:00:02]} 3. cxd4 {[%clk 00:15:25]} d5 {[%clk 00:15:33]} {[%emt
00:00:04]} 4. Nf3 {[%clk 00:15:33]} Nc6 {[%clk 00:15:41]} {[%emt 00:00:02]} 5.
g3 {[%clk 00:15:42]} {[%emt 00:00:02]} Bg4 {[%clk 00:15:35]} {[%emt 00:00:16]}
6. Bg2 {[%clk 00:15:50]} {[%emt 00:00:02]} e6 {[%clk 00:15:44]} {[%emt
00:00:02]} 7. O-O {[%clk 00:15:57]} {[%emt 00:00:03]} Nf6 {[%clk 00:15:52]}
{[%emt 00:00:02]} 8. Nc3 {[%clk 00:16:06]} {[%emt 00:00:02]} Be7 {[%clk
00:15:57]} {[%emt 00:00:04]} 9. Bg5 {[%clk 00:16:01]} {[%emt 00:00:15]} h6
{[%clk 00:15:55]} {[%emt 00:00:12]} 10. Bxf6 {[%clk 00:16:09]} {[%emt
00:00:03]} Bxf6 {[%clk 00:16:03]} {[%emt 00:00:02]} 11. e3 {[%clk 00:16:18]}
O-O {[%clk 00:16:11]} {[%emt 00:00:02]} 12. h3 {[%clk 00:16:27]} Bh5 {[%clk
00:16:19]} {[%emt 00:00:02]} 13. Qb3 {[%clk 00:16:33]} {[%emt 00:00:05]} Rb8
{[%clk 00:16:23]} {[%emt 00:00:06]} 14. Na4 {[%clk 00:15:51]} {[%emt 00:00:51]}
b6 {[%clk 00:16:12]} {[%emt 00:00:21]} 15. Qb5 {[%clk 00:15:36]} {[%emt
00:00:24]} Na5 {[%clk 00:15:46]} {[%emt 00:00:38]} 16. Nd2 {[%clk 00:15:36]}
{[%emt 00:00:10]} Rc8 {[%clk 00:15:16]} {[%emt 00:00:40]} 17. Rac1 {[%clk
00:15:44]} {[%emt 00:00:02]} Qe7 {[%clk 00:15:23]} {[%emt 00:00:02]} 18. b4
{[%clk 00:15:38]} {[%emt 00:00:17]} Nc4 {[%clk 00:14:34]} {[%emt 00:00:59]} 19.
Nxc4 {[%clk 00:15:36]} {[%emt 00:00:12]} dxc4 {[%clk 00:14:42]} 20. Nb2 {[%clk
00:15:45]} {[%emt 00:00:01]} c3 {[%clk 00:13:56]} {[%emt 00:00:55]} 21. Na4
{[%clk 00:15:35]} {[%emt 00:00:22]} c2 {[%clk 00:13:42]} {[%emt 00:00:24]} 22.
Be4 {[%clk 00:14:29]} {[%emt 00:01:16]} e5 {[%clk 00:11:43]} {[%emt 00:02:09]}
23. d5 {[%clk 00:14:24]} {[%emt 00:00:15]} Rc7 {[%clk 00:10:10]} {[%emt
00:01:42]} 24. Rxc2 {[%clk 00:14:26]} {[%emt 00:00:09]} Rxc2 {[%clk 00:10:10]}
{[%emt 00:00:11]} 25. Bxc2 {[%clk 00:14:35]} Bf3 {[%clk 00:09:35]} {[%emt
00:00:44]} 26. e4 {[%clk 00:14:44]} {[%emt 00:00:01]} Rc8 {[%clk 00:09:26]}
{[%emt 00:00:19]} 27. Bd3 {[%clk 00:14:43]} {[%emt 00:00:11]} Qd6 {[%clk
00:08:49]} {[%emt 00:00:47]} 28. Nb2 {[%clk 00:14:32]} {[%emt 00:00:21]} Be7
{[%clk 00:08:26]} {[%emt 00:00:33]} 29. a3 {[%clk 00:14:42]} {[%emt 00:00:02]}
Kf8 {[%clk 00:07:42]} {[%emt 00:00:53]} 30. Nc4 {[%clk 00:14:51]} {[%emt
00:00:01]} Qd8 {[%clk 00:06:34]} {[%emt 00:01:17]} 31. Nxe5 {[%clk 00:14:45]}
{[%emt 00:00:17]} Bh5 {[%clk 00:06:27]} {[%emt 00:00:16]} 32. Nc6 {[%clk
00:14:44]} {[%emt 00:00:11]} Qd7 {[%clk 00:05:58]} {[%emt 00:00:40]} 33. Kg2
{[%clk 00:14:31]} {[%emt 00:00:23]} Bd6 {[%clk 00:05:03]} {[%emt 00:01:03]} 34.
e5 {[%clk 00:14:32]} {[%emt 00:00:09]} Bc7 {[%clk 00:04:50]} {[%emt 00:00:23]}
35. f4 {[%clk 00:14:24]} {[%emt 00:00:19]} a6 {[%clk 00:04:20]} {[%emt
00:00:40]} 36. Qc4 {[%clk 00:14:30]} {[%emt 00:00:04]} Bd8 {[%clk 00:03:46]}
{[%emt 00:00:44]} 37. Be4 {[%clk 00:14:13]} {[%emt 00:00:26]} b5 {[%clk
00:03:46]} {[%emt 00:00:10]} 38. Qd3 {[%clk 00:14:19]} {[%emt 00:00:04]} f6
{[%clk 00:03:48]} {[%emt 00:00:09]} 39. Bf5 {[%clk 00:14:28]} {[%emt 00:00:01]}
1-0

[Event "SELL Games"]
[Site "Tartu, Estonia"]
[Date "2023.05.19"]
[Round "2.1"]
[White "Laurusas, Tomas"]
[Black "Bekasovs, Rihards"]
[Result "1-0"]
[TimeControl "15min + 10sec per move each"]
[WhiteTitle "GM"]
[WhiteFideId "12803731"]
[BlackFideId "11606029"]
[WhiteElo "2504"]
[BlackElo "2107"]

1. d4 {[%clk 00:15:19]} Nf6 {[%clk 00:15:16]} {[%emt 00:00:04]} 2. c4 {[%clk
00:15:28]} {[%emt 00:00:02]} c5 {[%clk 00:15:03]} {[%emt 00:00:22]} 3. d5
{[%clk 00:15:33]} {[%emt 00:00:05]} b5 {[%clk 00:15:05]} {[%emt 00:00:08]} 4.
cxb5 {[%clk 00:15:41]} {[%emt 00:00:03]} a6 {[%clk 00:15:14]} {[%emt 00:00:01]}
5. e3 {[%clk 00:14:47]} {[%emt 00:01:04]} axb5 {[%clk 00:14:50]} {[%emt
00:00:34]} 6. Bxb5 {[%clk 00:14:51]} {[%emt 00:00:06]} Qa5+ {[%clk 00:14:59]}
{[%emt 00:00:02]} 7. Nc3 {[%clk 00:14:59]} {[%emt 00:00:01]} Bb7 {[%clk
00:15:08]} {[%emt 00:00:01]} 8. Nge2 {[%clk 00:14:43]} {[%emt 00:00:26]} Nxd5
{[%clk 00:14:12]} {[%emt 00:01:06]} 9. O-O {[%clk 00:14:51]} {[%emt 00:00:02]}
Nxc3 {[%clk 00:13:14]} {[%emt 00:01:09]} 10. Nxc3 {[%clk 00:14:59]} {[%emt
00:00:01]} e6 {[%clk 00:12:56]} {[%emt 00:00:28]} 11. e4 {[%clk 00:14:59]}
{[%emt 00:00:10]} Be7 {[%clk 00:12:43]} {[%emt 00:00:24]} 12. Bf4 {[%clk
00:14:36]} {[%emt 00:00:32]} O-O {[%clk 00:11:29]} {[%emt 00:01:24]} 13. a4
{[%clk 00:13:57]} {[%emt 00:00:50]} Qb6 {[%clk 00:10:33]} {[%emt 00:01:06]} 14.
Qg4 {[%clk 00:13:54]} {[%emt 00:00:12]} Nc6 {[%clk 00:08:36]} {[%emt 00:02:06]}
15. Rad1 {[%clk 00:12:55]} {[%emt 00:01:10]} Nd4 {[%clk 00:08:17]} {[%emt
00:00:29]} 16. Be5 {[%clk 00:12:44]} {[%emt 00:00:21]} f6 {[%clk 00:07:59]}
{[%emt 00:00:28]} 17. Bxd4 {[%clk 00:12:49]} {[%emt 00:00:04]} cxd4 {[%clk
00:08:08]} {[%emt 00:00:02]} 18. Ne2 {[%clk 00:12:58]} {[%emt 00:00:02]} e5
{[%clk 00:06:19]} {[%emt 00:01:58]} 19. Qxd7 {[%clk 00:13:02]} {[%emt
00:00:07]} Bb4 {[%clk 00:04:23]} {[%emt 00:02:06]} 20. Ng3 {[%clk 00:12:52]}
{[%emt 00:00:20]} Bc8 {[%clk 00:03:39]} {[%emt 00:00:54]} 21. Qc6 {[%clk
00:12:21]} {[%emt 00:00:40]} Qxc6 {[%clk 00:02:56]} {[%emt 00:00:54]} 22. Bxc6
{[%clk 00:12:29]} {[%emt 00:00:01]} Rb8 {[%clk 00:03:06]} 23. Bb5 {[%clk
00:12:18]} {[%emt 00:00:21]} Be6 {[%clk 00:02:52]} {[%emt 00:00:23]} 24. Rc1
{[%clk 00:12:27]} {[%emt 00:00:02]} Ra8 {[%clk 00:02:25]} {[%emt 00:00:37]} 25.
Nf5 {[%clk 00:11:13]} {[%emt 00:01:23]} Rfb8 {[%clk 00:01:58]} {[%emt
00:00:38]} 26. Rc7 {[%clk 00:10:44]} {[%emt 00:00:39]} Bf8 {[%clk 00:02:06]}
{[%emt 00:00:02]} 27. Rfc1 {[%clk 00:06:59]} {[%emt 00:03:55]} Bb3 {[%clk
00:01:56]} {[%emt 00:00:21]} 28. Bc6 {[%clk 00:06:51]} {[%emt 00:00:17]} Ra5
{[%clk 00:01:39]} {[%emt 00:00:27]} 29. h4 {[%clk 00:06:51]} {[%emt 00:00:10]}
h6 {[%clk 00:00:18]} {[%emt 00:01:31]} 30. h5 {[%clk 00:06:15]} {[%emt
00:00:47]} d3 {[%clk 00:00:16]} {[%emt 00:00:12]} 31. Rd7 {[%clk 00:06:23]}
{[%emt 00:00:02]} Bc2 {[%clk 00:00:16]} {[%emt 00:00:10]} 32. Bb5 {[%clk
00:05:54]} {[%emt 00:00:39]} Bxa4 {[%clk 00:00:12]} {[%emt 00:00:14]} 33. Bc4+
{[%clk 00:05:43]} {[%emt 00:00:21]} Kh8 {[%clk 00:00:15]} {[%emt 00:00:08]} 34.
Rxd3 {[%clk 00:05:51]} {[%emt 00:00:01]} Be8 {[%clk 00:00:13]} {[%emt
00:00:12]} 35. g4 {[%clk 00:05:46]} {[%emt 00:00:15]} Rc5 {[%clk 00:00:14]}
{[%emt 00:00:09]} 36. b3 {[%clk 00:05:52]} {[%emt 00:00:04]} Bb5 {[%clk
00:00:14]} {[%emt 00:00:09]} 37. Kg2 {[%clk 00:04:37]} {[%emt 00:01:25]} Bxc4
{[%clk 00:00:15]} {[%emt 00:00:10]} 38. bxc4 {[%clk 00:04:43]} {[%emt
00:00:04]} Rbc8 {[%clk 00:00:17]} {[%emt 00:00:09]} 39. Ne3 {[%clk 00:04:51]}
{[%emt 00:00:01]} R5c6 {[%clk 00:00:21]} {[%emt 00:00:06]} 40. Rd7 {[%clk
00:04:55]} {[%emt 00:00:06]} Bc5 {[%clk 00:00:21]} {[%emt 00:00:10]} 41. Nd5
{[%clk 00:02:20]} {[%emt 00:02:45]} Bf8 {[%clk 00:00:21]} {[%emt 00:00:11]} 42.
Rd1 {[%clk 00:02:27]} {[%emt 00:00:03]} Rb8 {[%clk 00:00:13]} {[%emt 00:00:18]}
43. Ne3 {[%clk 00:02:22]} {[%emt 00:00:15]} Rbc8 {[%clk 00:00:11]} {[%emt
00:00:12]} 44. Rf7 {[%clk 00:02:15]} {[%emt 00:00:17]} R6c7 {[%clk 00:00:14]}
{[%emt 00:00:08]} 45. Rd8 {[%clk 00:01:40]} {[%emt 00:00:44]} Rxd8 {[%clk
00:00:13]} {[%emt 00:00:11]} 46. Rxc7 {[%clk 00:01:49]} {[%emt 00:00:02]} Rd4
{[%clk 00:00:17]} {[%emt 00:00:05]} 47. Kf3 {[%clk 00:01:51]} {[%emt 00:00:07]}
Kg8 {[%clk 00:00:23]} {[%emt 00:00:04]} 48. c5 {[%clk 00:01:56]} {[%emt
00:00:06]} Rd3 {[%clk 00:00:21]} {[%emt 00:00:11]} 49. Ke2 {[%clk 00:01:52]}
{[%emt 00:00:14]} Rc3 {[%clk 00:00:31]} 50. c6 {[%clk 00:02:01]} {[%emt
00:00:01]} Bd6 {[%clk 00:00:24]} {[%emt 00:00:16]} 51. Rc8+ {[%clk 00:02:06]}
{[%emt 00:00:05]} Kf7 {[%clk 00:00:14]} {[%emt 00:00:20]} 52. Nd5 {[%clk
00:01:54]} {[%emt 00:00:22]} Rc2+ {[%clk 00:00:13]} {[%emt 00:00:11]} 53. Kd3
{[%clk 00:00:42]} {[%emt 00:01:21]} Rxf2 {[%clk 00:00:14]} {[%emt 00:00:09]} 54.
Rd8 {[%clk 00:00:25]} {[%emt 00:00:28]} Ke6 {[%clk 00:00:15]} {[%emt 00:00:09]}
55. Re8+ {[%clk 00:00:33]} {[%emt 00:00:02]} Kf7 {[%clk 00:00:18]} {[%emt
00:00:07]} 56. Re7+ {[%clk 00:00:42]} Kf8 {[%clk 00:00:11]} {[%emt 00:00:17]}
57. Rd7 {[%clk 00:00:48]} {[%emt 00:00:04]} 1-0

[Event "SELL Games"]
[Site "Tartu, Estonia"]
[Date "2023.05.19"]
[Round "2.2"]
[White "Tvarijonas, Tomas"]
[Black "Stauskas, Lukas"]
[Result "0-1"]
[TimeControl "15min + 10sec per move each"]
[WhiteTitle "FM"]
[WhiteFideId "12805432"]
[BlackFideId "12808148"]
[WhiteElo "2181"]
[BlackElo "2296"]

1. e4 {[%clk 00:15:18]} {[%emt 00:00:02]} c5 {[%clk 00:15:18]} {[%emt
00:00:02]} 2. Nf3 {[%clk 00:15:26]} {[%emt 00:00:02]} e6 {[%clk 00:15:26]}
{[%emt 00:00:02]} 3. d4 {[%clk 00:15:35]} cxd4 {[%clk 00:15:34]} {[%emt
00:00:02]} 4. Nxd4 {[%clk 00:15:44]} {[%emt 00:00:01]} Nc6 {[%clk 00:15:43]}
{[%emt 00:00:02]} 5. Nc3 {[%clk 00:15:44]} {[%emt 00:00:09]} Qc7 {[%clk
00:15:51]} {[%emt 00:00:02]} 6. Be3 {[%clk 00:15:40]} {[%emt 00:00:14]} a6
{[%clk 00:15:59]} {[%emt 00:00:02]} 7. a3 {[%clk 00:14:57]} {[%emt 00:00:54]}
Nf6 {[%clk 00:16:02]} {[%emt 00:00:06]} 8. Be2 {[%clk 00:14:53]} {[%emt
00:00:14]} Be7 {[%clk 00:16:04]} {[%emt 00:00:09]} 9. g4 {[%clk 00:13:52]}
{[%emt 00:01:10]} d6 {[%clk 00:15:15]} {[%emt 00:00:59]} 10. g5 {[%clk
00:13:47]} {[%emt 00:00:16]} Nd7 {[%clk 00:15:23]} {[%emt 00:00:02]} 11. f4
{[%clk 00:13:31]} {[%emt 00:00:26]} b5 {[%clk 00:15:07]} {[%emt 00:00:25]} 12.
f5 {[%clk 00:12:42]} {[%emt 00:01:00]} Nxd4 {[%clk 00:14:44]} {[%emt 00:00:33]}
13. Qxd4 {[%clk 00:12:39]} {[%emt 00:00:13]} Ne5 {[%clk 00:14:48]} {[%emt
00:00:05]} 14. O-O-O {[%clk 00:12:24]} {[%emt 00:00:25]} Bb7 {[%clk 00:14:27]}
{[%emt 00:00:31]} 15. Rhf1 {[%clk 00:10:45]} {[%emt 00:01:49]} O-O-O {[%clk
00:12:14]} {[%emt 00:02:23]} 16. h4 {[%clk 00:09:50]} {[%emt 00:01:05]} g6
{[%clk 00:11:36]} {[%emt 00:00:49]} 17. f6 {[%clk 00:08:52]} {[%emt 00:01:08]}
Bf8 {[%clk 00:11:41]} {[%emt 00:00:05]} 18. a4 {[%clk 00:08:43]} {[%emt
00:00:19]} Nc6 {[%clk 00:11:14]} {[%emt 00:00:37]} 19. Qb6 {[%clk 00:07:54]}
{[%emt 00:00:58]} b4 {[%clk 00:10:50]} {[%emt 00:00:34]} 20. Na2 {[%clk
00:07:25]} {[%emt 00:00:39]} Qxb6 {[%clk 00:10:49]} {[%emt 00:00:12]} 21. Bxb6
{[%clk 00:07:34]} {[%emt 00:00:02]} Rd7 {[%clk 00:10:56]} {[%emt 00:00:02]} 22.
a5 {[%clk 00:07:26]} {[%emt 00:00:18]} h6 {[%clk 00:10:30]} {[%emt 00:00:36]}
23. Rh1 {[%clk 00:07:04]} {[%emt 00:00:33]} d5 {[%clk 00:08:42]} {[%emt
00:01:58]} 24. exd5 {[%clk 00:07:06]} {[%emt 00:00:07]} Rxd5 {[%clk 00:08:50]}
{[%emt 00:00:02]} 25. Rxd5 {[%clk 00:06:13]} {[%emt 00:01:03]} exd5 {[%clk
00:08:58]} {[%emt 00:00:02]} 26. Bg4+ {[%clk 00:06:22]} {[%emt 00:00:01]} Kb8
{[%clk 00:09:07]} {[%emt 00:00:02]} 27. Re1 {[%clk 00:03:44]} {[%emt 00:02:47]}
Bd6 {[%clk 00:08:57]} {[%emt 00:00:20]} 28. gxh6 {[%clk 00:03:26]} {[%emt
00:00:28]} Ne5 {[%clk 00:07:50]} {[%emt 00:01:17]} 29. Bd1 {[%clk 00:02:18]}
{[%emt 00:01:18]} b3 {[%clk 00:04:53]} {[%emt 00:03:07]} 30. Nc3 {[%clk
00:02:06]} {[%emt 00:00:23]} bxc2 {[%clk 00:04:30]} {[%emt 00:00:32]} 31. Kxc2
{[%clk 00:02:01]} {[%emt 00:00:15]} Rxh6 {[%clk 00:04:01]} {[%emt 00:00:39]} 32.
Bf2 {[%clk 00:01:50]} {[%emt 00:00:21]} Nd7 {[%clk 00:03:19]} {[%emt 00:00:53]}
33. Re8+ {[%clk 00:00:47]} {[%emt 00:01:13]} Kc7 {[%clk 00:03:28]} {[%emt
00:00:02]} 34. Na4 {[%clk 00:00:16]} {[%emt 00:00:40]} Nxf6 {[%clk 00:03:10]}
{[%emt 00:00:28]} 35. Bb6+ {[%clk 00:00:25]} {[%emt 00:00:01]} Kd7 {[%clk
00:03:04]} {[%emt 00:00:16]} 36. Re3 {[%clk 00:00:12]} {[%emt 00:00:23]} Rxh4
{[%clk 00:03:01]} {[%emt 00:00:13]} 37. Nc5+ {[%clk 00:00:11]} {[%emt
00:00:11]} Bxc5 {[%clk 00:03:04]} {[%emt 00:00:07]} 38. Bxc5 {[%clk 00:00:20]}
{[%emt 00:00:01]} Rc4+ {[%clk 00:03:06]} {[%emt 00:00:07]} 39. Rc3 {[%clk
00:00:29]} Rxc5 {[%clk 00:02:15]} {[%emt 00:01:02]} 40. Rxc5 {[%clk 00:00:35]}
{[%emt 00:00:03]} Ne4 {[%clk 00:02:24]} 41. Rc3 {[%clk 00:00:20]} {[%emt
00:00:26]} Nxc3 {[%clk 00:02:32]} {[%emt 00:00:02]} 42. Kxc3 {[%clk 00:00:29]}
{[%emt 00:00:01]} Kd6 {[%clk 00:01:36]} {[%emt 00:01:06]} 43. Kd4 {[%clk
00:00:37]} {[%emt 00:00:02]} Bc6 {[%clk 00:01:24]} {[%emt 00:00:23]} 44. b3
{[%clk 00:00:18]} {[%emt 00:00:29]} f5 {[%clk 00:00:56]} {[%emt 00:00:38]} 45.
Be2 {[%clk 00:00:26]} {[%emt 00:00:02]} Bb7 {[%clk 00:00:59]} {[%emt 00:00:07]}
46. b4 {[%clk 00:00:28]} {[%emt 00:00:08]} g5 {[%clk 00:00:59]} {[%emt
00:00:09]} 47. b5 {[%clk 00:00:36]} {[%emt 00:00:02]} axb5 {[%clk 00:01:04]}
{[%emt 00:00:05]} 48. Bxb5 {[%clk 00:00:45]} {[%emt 00:00:02]} g4 {[%clk
00:00:50]} {[%emt 00:00:24]} 49. a6 {[%clk 00:00:54]} Ba8 {[%clk 00:00:54]}
{[%emt 00:00:06]} 50. Be2 {[%clk 00:01:02]} {[%emt 00:00:02]} Ke6 {[%clk
00:00:36]} {[%emt 00:00:28]} 51. a7 {[%clk 00:00:56]} {[%emt 00:00:16]} Kf6
{[%clk 00:00:20]} {[%emt 00:00:26]} 52. Kc5 {[%clk 00:00:59]} {[%emt 00:00:07]}
Ke5 {[%clk 00:00:24]} {[%emt 00:00:07]} 53. Kb6 {[%clk 00:00:43]} {[%emt
00:00:26]} Kd6 {[%clk 00:00:14]} {[%emt 00:00:19]} 54. Kb5 {[%clk 00:00:36]}
{[%emt 00:00:17]} d4 {[%clk 00:00:20]} {[%emt 00:00:03]} 55. Kc4 {[%clk
00:00:18]} {[%emt 00:00:29]} g3 {[%clk 00:00:27]} {[%emt 00:00:03]} 56. Bf1
{[%clk 00:00:27]} g2 {[%clk 00:00:31]} {[%emt 00:00:07]} 0-1